fUST/lending_fUST_20250724
["ID","MTS","AMOUNT","RATE_DAILY","PERIOD"]
[374599440,1753369847770,-267.16241835,0.00021805,2]
[374599441,1753369847784,-460.0,0.00021805,2]
[374599442,1753369847794,-520.87,0.00021805,2]
[374599443,1753369847803,-1355.64,0.00021805,2]
[374599444,1753369847814,-728.36,0.00021805,2]
[374599445,1753369847823,-1595.08,0.00021805,2]
[374599446,1753369847836,-470.01,0.00021805,2]
[374599447,1753369847854,-460.0,0.00021805,2]
[374599448,1753369847864,-1000.0,0.00021848,2]
[374599449,1753369847875,-576.27187642,0.00021848,2]
[374599450,1753369847886,-460.0,0.00021903,2]
[374599451,1753369847900,-460.0,0.00021904,2]
[374599452,1753369847914,-2207.52044602,0.00021969,6]
[374599453,1753369847926,-26163.24,0.00022,2]
[374599454,1753369847939,-4457.98,0.00022,7]
[374599455,1753369847951,-1724.36,0.00022,7]
[374599456,1753369847961,-173.0,0.00022,2]
[374599457,1753369847971,-500.0,0.00022022,2]
[374599458,1753369847982,-1817.27,0.00022074,2]
[374599459,1753369847997,-622.61,0.00022074,2]
[374599460,1753369848007,-568.76,0.00022075,2]
[374599461,1753369848018,-1345.73,0.00022075,2]
[374599462,1753369848028,-460.0,0.00022075,2]
[374599463,1753369848039,-915.03,0.00022075,2]
[374599464,1753369848048,-550.98,0.00022076,2]
[374599465,1753369848059,-460.0,0.00022076,2]
[374599466,1753369848068,-460.0,0.00022076,2]
[374599467,1753369848079,-460.0,0.00022076,2]
[374599468,1753369848091,-460.0,0.00022076,2]
[374599469,1753369848104,-460.0,0.00022076,2]
[374599470,1753369848115,-2764.12,0.00022076,2]
[374599471,1753369848126,-460.0,0.00022076,2]
[374599472,1753369848141,-460.0,0.00022076,2]
[374599473,1753369848157,-460.0,0.00022076,2]
[374599474,1753369848168,-460.0,0.00022076,2]
[374599475,1753369848177,-460.0,0.00022079,2]
[374599476,1753369848187,-460.0,0.00022079,2]
[374599477,1753369848198,-460.0,0.00022079,2]
[374599478,1753369848213,-460.0,0.00022079,2]
[374599479,1753369848224,-892.16,0.00022079,2]
[374599480,1753369848234,-460.0,0.00022079,2]
[374599481,1753369848245,-460.0,0.00022079,2]
[374599482,1753369848258,-520.87,0.00022079,2]
[374599483,1753369848268,-1355.64,0.00022079,2]
[374599484,1753369848279,-728.36,0.00022079,2]
[374599485,1753369848291,-1595.08,0.00022079,2]
[374599486,1753369848301,-470.01,0.00022079,2]
[374599487,1753369848310,-460.0,0.00022079,2]
[374599488,1753369848320,-2207.52044602,0.00022176,6]
[374599489,1753369848329,-460.0,0.00022177,2]
[374599490,1753369848339,-460.0,0.00022178,2]
[374599491,1753369848350,-4092.03142468,0.00022206,2]
[374599492,1753369848360,-685.2464981,0.0002222,2]
[374599493,1753369848369,-1000.0,0.00022248,2]
[374599494,1753369848379,-1000.0,0.00022248,2]
[374599495,1753369848389,-151.0,0.000223,9]
[374599496,1753369848399,-3609.07108579,0.00022327,2]
[374599497,1753369848409,-1817.27,0.00022348,2]
[374599498,1753369848420,-622.61,0.00022348,2]
[374599499,1753369848430,-568.76,0.00022349,2]
[374599500,1753369848440,-1345.73,0.00022349,2]
[374599501,1753369848450,-460.0,0.00022349,2]
[374599502,1753369848460,-915.03,0.00022349,2]
[374599503,1753369848470,-550.98,0.0002235,2]
[374599504,1753369848480,-460.0,0.0002235,2]
[374599505,1753369848489,-460.0,0.0002235,2]
[374599506,1753369848500,-460.0,0.0002235,2]
[374599507,1753369848510,-253.56944575,0.0002235,2]
[374599508,1753369848520,-460.0,0.0002235,2]
[374599509,1753369848532,-2764.12,0.0002235,2]
[374599510,1753369848542,-460.0,0.0002235,2]
[374599511,1753369848551,-460.0,0.0002235,2]
[374599512,1753369848561,-201.09,0.0002235,2]
[374599513,1753369848571,-460.0,0.0002235,2]
[374599514,1753369848580,-460.0,0.00022353,2]
[374599515,1753369848590,-175.71480877,0.00022353,2]
[374599516,1753369848599,-460.0,0.00022353,2]
[374599517,1753369848609,-460.0,0.00022353,2]
[374599518,1753369848619,-892.16,0.00022353,2]
[374599519,1753369848628,-460.0,0.00022353,2]
[374599520,1753369848637,-460.0,0.00022353,2]
[374599521,1753369848647,-520.87,0.00022353,2]
[374599522,1753369848656,-1355.64,0.00022353,2]
[374599523,1753369848666,-728.36,0.00022353,2]
[374599524,1753369848676,-1595.08,0.00022353,2]
[374599525,1753369848685,-470.01,0.00022353,2]
[374599526,1753369848695,-460.0,0.00022353,2]
[374599527,1753369848704,-2207.52044602,0.00022383,7]
[374599528,1753369848714,-1170.95025122,0.00022396,2]
[374599529,1753369848723,-352.81372059,0.00022451,2]
[374599530,1753369848733,-460.0,0.00022452,2]
[374599531,1753369848743,-1676.14,0.00022465,2]
[374599532,1753369848753,-215.0738,0.00022491,2]
[374599533,1753369848763,-630.23415282,0.00022491,2]
[374599534,1753369848772,-151.0,0.00022491,2]
[374599535,1753369848785,-151.0,0.00022491,2]
[374599536,1753369848795,-151.0,0.00022491,2]
[374599537,1753369848805,-151.0,0.00022491,2]
[374599538,1753369848815,-151.0,0.00022491,2]
[374599539,1753369848825,-151.0,0.00022491,2]
[374599540,1753369848835,-151.0,0.00022491,2]
[374599541,1753369848845,-151.0,0.00022491,2]
[374599542,1753369848854,-151.0,0.00022491,2]
[374599543,1753369848865,-151.0,0.00022491,2]
[374599544,1753369848874,-151.0,0.00022491,2]
[374599545,1753369848884,-151.0,0.00022491,2]
[374599546,1753369848894,-151.0,0.00022491,2]
[374599547,1753369848904,-151.0,0.00022491,2]
[374599548,1753369848914,-151.0,0.00022491,2]
[374599549,1753369848924,-151.0,0.00022491,2]
[374599550,1753369848934,-151.0,0.00022491,2]
[374599551,1753369848944,-151.0,0.00022491,2]
[374599552,1753369848953,-1000.0,0.0002257,2]
[374599553,1753369848962,-2207.52044602,0.0002259,7]
[374599554,1753369848972,-476.79463412,0.0002259,7]
[374599555,1753369848981,-12624.810388,0.0002259,7]
[374599556,1753369848991,-1817.27,0.00022622,2]
[374599557,1753369849000,-622.61,0.00022622,2]
[374599558,1753369849009,-568.76,0.00022623,2]
[374599559,1753369849018,-1345.73,0.00022623,2]
[374599560,1753369849028,-460.0,0.00022623,2]
[374599561,1753369849038,-915.03,0.00022623,2]
[374599562,1753369849048,-550.98,0.00022624,2]
[374599563,1753369849058,-460.0,0.00022624,2]
[374599564,1753369849068,-460.0,0.00022624,2]
[374599565,1753369849077,-460.0,0.00022624,2]
[374599566,1753369849087,-460.0,0.00022624,2]
[374599567,1753369849096,-2764.12,0.00022624,2]
[374599568,1753369849107,-460.0,0.00022624,2]
[374599569,1753369849117,-460.0,0.00022624,2]
[374599570,1753369849127,-460.0,0.00022624,2]
[374599571,1753369849136,-460.0,0.00022627,2]
[374599572,1753369849146,-411.25475925,0.00022627,2]
[374599573,1753369849156,-460.0,0.00022627,2]
[374599574,1753369849166,-892.16,0.00022627,2]
[374599575,1753369849175,-460.0,0.00022627,2]
[374599576,1753369849184,-460.0,0.00022627,2]
[374599577,1753369849194,-520.87,0.00022627,2]
[374599578,1753369849204,-1355.64,0.00022627,2]
[374599579,1753369849218,-728.36,0.00022627,2]
[374599580,1753369849228,-1595.08,0.00022627,2]
[374599581,1753369849239,-470.01,0.00022627,2]
[374599582,1753369849250,-460.0,0.00022627,2]
[374599583,1753369849260,-3609.07108579,0.00022691,2]
[374599584,1753369849269,-151.0,0.000227,5]
[374599585,1753369849281,-503.33,0.00022724,5]
[374599586,1753369849291,-537.57,0.00022724,7]
[374599587,1753369849301,-482.04,0.00022726,2]
[374599588,1753369849310,-508.62,0.00022754,4]
[374599589,1753369849321,-500.0,0.00022796,2]
[374599590,1753369849332,-709.39504618,0.00022796,2]
[374599591,1753369849342,-2207.52044602,0.00022797,7]
[374599592,1753369849352,-151.0,0.000228,7]
[374599593,1753369849361,-503.33,0.00022824,2]
[374599594,1753369849371,-537.57,0.00022824,7]
[374599595,1753369849381,-3609.07108579,0.00022851,2]
[374599596,1753369849391,-508.62,0.00022854,3]
[374599597,1753369849401,-1817.27,0.00022896,2]
[374599598,1753369849410,-622.61,0.00022896,2]
[374599599,1753369849420,-568.76,0.00022897,2]
[374599600,1753369849430,-1345.73,0.00022897,2]
[374599601,1753369849440,-460.0,0.00022897,2]
[374599602,1753369849449,-915.03,0.00022897,2]
[374599603,1753369849459,-550.98,0.00022898,2]
[374599604,1753369849468,-460.0,0.00022898,2]
[374599605,1753369849477,-460.0,0.00022898,2]
[374599606,1753369849487,-460.0,0.00022898,2]
[374599607,1753369849496,-460.0,0.00022898,2]
[374599608,1753369849505,-2764.12,0.00022898,2]
[374599609,1753369849516,-460.0,0.00022898,2]
[374599610,1753369849526,-460.0,0.00022898,2]
[374599611,1753369849536,-460.0,0.00022898,2]
[374599612,1753369849546,-460.0,0.00022901,2]
[374599613,1753369849555,-460.0,0.00022901,2]
[374599614,1753369849564,-892.16,0.00022901,2]
[374599615,1753369849574,-460.0,0.00022901,2]
[374599616,1753369849583,-188.89008705,0.00022901,2]
[374599617,1753369849593,-520.87,0.00022901,2]
[374599618,1753369849602,-1355.64,0.00022901,2]
[374599619,1753369849612,-728.36,0.00022901,2]
[374599620,1753369849622,-1595.08,0.00022901,2]
[374599621,1753369849631,-470.01,0.00022901,2]
[374599622,1753369849641,-460.0,0.00022901,2]
[374599623,1753369849652,-503.33,0.00022924,6]
[374599624,1753369849661,-537.57,0.00022924,5]
[374599625,1753369849671,-508.62,0.00022954,7]
[374599626,1753369849681,-3000.0,0.00023,2]
[374599627,1753369849691,-151.0,0.00023,5]
[374599628,1753369849701,-151.0,0.00023,10]
[374599629,1753369849710,-160.0,0.00023,2]
[374599630,1753369849721,-2207.52044602,0.00023003,8]
[374599631,1753369849730,-3000.0,0.0002301,2]
[374599632,1753369849740,-173.0,0.00023014,7]
[374599633,1753369849750,-3000.0,0.0002302,2]
[374599634,1753369849760,-503.36,0.00023024,7]
[374599635,1753369849770,-537.6,0.00023024,4]
[374599636,1753369849783,-3000.0,0.0002303,2]
[374599637,1753369849792,-3000.0,0.0002304,2]
[374599638,1753369849801,-3000.0,0.0002305,2]
[374599639,1753369849810,-508.62,0.00023054,6]
[374599640,1753369849820,-3000.0,0.0002306,2]
[374599641,1753369849829,-3000.0,0.0002307,2]
[374599642,1753369849839,-3609.07108579,0.00023078,2]
[374599643,1753369849849,-3000.0,0.0002308,2]
[374599644,1753369849858,-3000.0,0.0002309,2]
[374599645,1753369849867,-685.2464981,0.0002309,2]
[374599646,1753369849876,-3000.0,0.000231,2]
[374599647,1753369849886,-3000.0,0.0002311,2]
[374599648,1753369849895,-500.0,0.00023118,2]
[374599649,1753369849905,-3000.0,0.0002312,2]
[374599650,1753369849914,-3000.0,0.0002313,2]
[374599651,1753369849924,-3000.0,0.0002314,2]
[374599652,1753369849933,-3000.0,0.0002315,2]
[374599653,1753369849942,-171.57040078,0.0002315,2]
[374599654,1753369849952,-508.62,0.00023154,6]
[374599655,1753369849961,-3000.0,0.0002316,2]
[374599656,1753369849971,-3000.0,0.0002317,2]
[374599657,1753369849981,-1817.27,0.0002317,2]
[374599658,1753369849991,-622.61,0.0002317,2]
[374599659,1753369850000,-568.76,0.00023171,2]
[374599660,1753369850010,-1345.73,0.00023171,2]
[374599661,1753369850021,-312.6,0.00023171,2]
[374599662,1753369850033,-915.03,0.00023171,2]
[374599663,1753369850042,-550.98,0.00023172,2]
[374599664,1753369850052,-460.0,0.00023172,2]
[374599665,1753369850061,-460.0,0.00023172,2]
[374599666,1753369850071,-460.0,0.00023172,2]
[374599667,1753369850079,-460.0,0.00023172,2]
[374599668,1753369850089,-2764.12,0.00023172,2]
[374599669,1753369850099,-460.0,0.00023172,2]
[374599670,1753369850109,-460.0,0.00023172,2]
[374599671,1753369850119,-460.0,0.00023172,2]
[374599672,1753369850128,-460.0,0.00023175,2]
[374599673,1753369850143,-460.0,0.00023175,2]
[374599674,1753369850152,-892.16,0.00023175,2]
[374599675,1753369850161,-460.0,0.00023175,2]
[374599676,1753369850171,-520.87,0.00023175,2]
[374599677,1753369850180,-1355.64,0.00023175,2]
[374599678,1753369850190,-728.36,0.00023175,2]
[374599679,1753369850200,-1595.08,0.00023175,2]
[374599680,1753369850214,-470.01,0.00023175,2]
[374599681,1753369850224,-460.0,0.00023175,2]
[374599682,1753369850234,-3000.0,0.0002318,2]
[374599683,1753369850244,-3000.0,0.0002319,2]
[374599684,1753369850254,-3000.0,0.000232,2]
[374599685,1753369850263,-3000.0,0.0002321,2]
[374599686,1753369850277,-2207.52044602,0.0002321,8]
[374599687,1753369850292,-3000.0,0.0002322,2]
[374599688,1753369850302,-3000.0,0.0002323,2]
[374599689,1753369850312,-3000.0,0.0002324,2]
[374599690,1753369850321,-3000.0,0.0002325,2]
[374599691,1753369850331,-508.62,0.00023254,3]
[374599692,1753369850341,-3000.0,0.0002326,2]
[374599693,1753369850350,-587.0,0.00023266,2]
[374599694,1753369850361,-3286.2022343,0.00023268,2]
[374599695,1753369850371,-3000.0,0.0002327,2]
[374599696,1753369850381,-3000.0,0.0002328,2]
[374599697,1753369850391,-3000.0,0.0002329,2]
[374599698,1753369850401,-3000.0,0.000233,2]
[374599699,1753369850412,-3000.0,0.0002331,2]
[374599700,1753369850422,-3000.0,0.0002332,2]
[374599701,1753369850431,-3000.0,0.0002333,2]
[374599702,1753369850441,-3000.0,0.0002334,2]
[374599703,1753369850451,-3000.0,0.0002335,2]
[374599704,1753369850460,-508.62,0.00023354,3]
[374599705,1753369850469,-3000.0,0.0002336,2]
[374599706,1753369850479,-3000.0,0.0002337,2]
[374599707,1753369850488,-3000.0,0.0002338,2]
[374599708,1753369850498,-3000.0,0.0002339,2]
[374599709,1753369850508,-3000.0,0.000234,2]
[374599710,1753369850518,-26163.24,0.000234,2]
[374599711,1753369850539,-4457.98,0.000234,7]
[374599712,1753369850550,-1724.36,0.000234,7]
[374599713,1753369850561,-214.7213231,0.000234,7]
[374599714,1753369850572,-3487.28633,0.0002341,2]
[374599715,1753369850582,-2207.52044602,0.00023417,9]
[374599716,1753369850592,-474.34331691,0.00023433,2]
[374599717,1753369850604,-1817.27,0.00023444,2]
[374599718,1753369850614,-622.61,0.00023444,2]
[374599719,1753369850625,-568.76,0.00023445,2]
[374599720,1753369850635,-1345.73,0.00023445,2]
[374599721,1753369850646,-915.03,0.00023445,2]
[374599722,1753369850656,-550.98,0.00023446,2]
[374599723,1753369850667,-460.0,0.00023446,2]
[374599724,1753369850676,-460.0,0.00023446,2]
[374599725,1753369850687,-460.0,0.00023446,2]
[374599726,1753369850698,-460.0,0.00023446,2]
[374599727,1753369850708,-2764.12,0.00023446,2]
[374599728,1753369850719,-460.0,0.00023446,2]
[374599729,1753369850730,-460.0,0.00023446,2]
[374599730,1753369850741,-460.0,0.00023446,2]
[374599731,1753369850751,-180.69798566,0.00023449,2]
[374599732,1753369850762,-460.0,0.00023449,2]
[374599733,1753369850772,-892.16,0.00023449,2]
[374599734,1753369850785,-460.0,0.00023449,2]
[374599735,1753369850795,-520.87,0.00023449,2]
[374599736,1753369850806,-1355.64,0.00023449,2]
[374599737,1753369850817,-728.36,0.00023449,2]
[374599738,1753369850979,-1595.08,0.00023449,2]
[374599739,1753369850989,-470.01,0.00023449,2]
[374599740,1753369850999,-460.0,0.00023449,2]
[374599741,1753369851009,-508.62,0.00023454,5]
[374599742,1753369851019,-429.7456075,0.00023479,2]
[374599743,1753369851032,-429.7456075,0.00023479,2]
[374599744,1753369851042,-429.7456075,0.00023479,2]
[374599745,1753369851052,-3609.07108579,0.00023521,2]
[374599746,1753369851062,-151.0,0.00023547,6]
[374599747,1753369851071,-508.62,0.00023554,7]
[374599748,1753369851080,-429.7456075,0.00023589,2]
[374599749,1753369851090,-429.7456075,0.00023589,2]
[374599750,1753369851099,-429.7456075,0.00023589,2]
[374599751,1753369851110,-429.7456075,0.00023589,2]
[374599752,1753369851119,-429.7456075,0.00023589,2]
[374599753,1753369851132,-429.7456075,0.00023589,2]
[374599754,1753369851142,-429.7456075,0.00023589,2]
[374599755,1753369851152,-429.7456075,0.00023589,2]
[374599756,1753369851163,-429.7456075,0.00023589,2]
[374599757,1753369851175,-859.491215,0.00023589,2]
[374599758,1753369851185,-429.7456075,0.00023589,2]
[374599759,1753369851195,-429.7456075,0.00023589,2]
[374599760,1753369851208,-429.7456075,0.00023589,2]
[374599761,1753369851218,-429.7456075,0.00023589,2]
[374599762,1753369851228,-288.985991,0.00023589,2]
[374599763,1753369851238,-164.0975522,0.000236,4]
[374599764,1753369851249,-2207.52044602,0.00023624,9]
[374599765,1753369851259,-508.62,0.00023654,7]
[374599766,1753369851268,-1817.27,0.00023718,2]
[374599767,1753369851280,-622.61,0.00023718,2]
[374599768,1753369851290,-568.76,0.00023719,2]
[374599769,1753369851300,-1345.73,0.00023719,2]
[374599770,1753369851316,-915.03,0.00023719,2]
[374599771,1753369851326,-550.98,0.0002372,2]
[374599772,1753369851336,-460.0,0.0002372,2]
[374599773,1753369851347,-460.0,0.0002372,2]
[374599774,1753369851357,-397.4,0.0002372,2]
[374599775,1753369851368,-460.0,0.0002372,2]
[374599776,1753369851377,-2764.12,0.0002372,2]
[374599777,1753369851389,-460.0,0.0002372,2]
[374599778,1753369851400,-460.0,0.0002372,2]
[374599779,1753369851411,-460.0,0.00023723,2]
[374599780,1753369851421,-892.16,0.00023723,2]
[374599781,1753369851430,-460.0,0.00023723,2]
[374599782,1753369851440,-520.87,0.00023723,2]
[374599783,1753369851451,-1355.64,0.00023723,2]
[374599784,1753369851461,-728.36,0.00023723,2]
[374599785,1753369851471,-1595.08,0.00023723,2]
[374599786,1753369851481,-470.01,0.00023723,2]
[374599787,1753369851493,-460.0,0.00023723,2]
[374599788,1753369851504,-159.9507963,0.00023753,2]
[374599789,1753369851514,-577.6552115,0.00023753,2]
[374599790,1753369851523,-178.2667198,0.00023753,2]
[374599791,1753369851535,-178.2667198,0.00023753,2]
[374599792,1753369851545,-159.9507963,0.00023753,2]
[374599793,1753369851555,-577.6552115,0.00023753,2]
[374599794,1753369851565,-178.2667198,0.00023753,2]
[374599795,1753369851575,-458.6427467,0.00023753,2]
[374599796,1753369851588,-159.9507963,0.00023753,2]
[374599797,1753369851599,-178.2667198,0.00023753,2]
[374599798,1753369851608,-159.9507963,0.00023753,2]
[374599799,1753369851618,-159.9507963,0.00023753,2]
[374599800,1753369851628,-178.2667198,0.00023753,2]
[374599801,1753369851638,-508.62,0.00023754,4]
[374599802,1753369851648,-3609.07108579,0.00023761,2]
[374599803,1753369851658,-2207.52044602,0.00023831,10]
[374599804,1753369851668,-508.62,0.00023854,2]
[374599805,1753369851679,-223.0315306,0.0002386,2]
[374599806,1753369851689,-500.0,0.00023874,2]
[374599807,1753369851699,-151.0,0.00023875,6]
[374599808,1753369851709,-299.92947393,0.000239,2]
[374599809,1753369851719,-508.62,0.00023954,6]
[374599810,1753369851729,-1817.27,0.00023992,2]
[374599811,1753369851739,-622.61,0.00023992,2]
[374599812,1753369851749,-568.76,0.00023993,2]
[374599813,1753369851759,-1345.73,0.00023993,2]
[374599814,1753369851769,-915.03,0.00023993,2]
[374599815,1753369851779,-550.98,0.00023994,2]
[374599816,1753369851789,-460.0,0.00023994,2]
[374599817,1753369851799,-221.98107963,0.00023994,2]
[374599818,1753369851809,-460.0,0.00023994,2]
[374599819,1753369851819,-2764.12,0.00023994,2]
[374599820,1753369851832,-460.0,0.00023994,2]
[374599821,1753369851842,-460.0,0.00023994,2]
[374599822,1753369851852,-259.01013579,0.00023997,2]
[374599823,1753369851870,-892.16,0.00023997,2]
[374599824,1753369851892,-311.20166782,0.00023997,2]
[374599825,1753369851910,-520.87,0.00023997,2]
[374599826,1753369851920,-1355.64,0.00023997,2]
[374599827,1753369851930,-728.36,0.00023997,2]
[374599828,1753369851941,-1595.08,0.00023997,2]
[374599829,1753369851950,-470.01,0.00023997,2]
[374599830,1753369851960,-460.0,0.00023997,2]
[374599831,1753369851971,-385.90707252,0.00024,7]
[374599832,1753369851981,-9817.0,0.00024,30]
[374599833,1753369851991,-160.0,0.00024,7]
[374599834,1753369852001,-2207.52044602,0.00024038,10]
[374599835,1753369852010,-508.62,0.00024054,4]
[374599836,1753369852020,-3609.07108579,0.00024093,2]
[374599837,1753369852031,-151.0,0.00024104,2]
[374599838,1753369852041,-598.0,0.00024104,2]
[374599839,1753369852051,-151.0,0.00024104,2]
[374599840,1753369852060,-269.0,0.00024137,2]
[374599841,1753369852070,-575.60330252,0.000242,2]
[374599842,1753369852080,-151.0,0.00024204,6]
[374599843,1753369852090,-2207.52044602,0.00024245,10]
[374599844,1753369852099,-155.465693,0.00024256,8]
[374599845,1753369852109,-269.0,0.00024261,2]
[374599846,1753369852119,-1817.27,0.00024266,2]
[374599847,1753369852128,-622.61,0.00024266,2]
[374599848,1753369852138,-568.76,0.00024267,2]
[374599849,1753369852147,-1345.73,0.00024267,2]
[374599850,1753369852157,-915.03,0.00024267,2]
[374599851,1753369852167,-550.98,0.00024268,2]
[374599852,1753369852176,-211.97598383,0.00024268,2]
[374599853,1753369852186,-328.74765186,0.00024268,2]
[374599854,1753369852196,-2764.12,0.00024268,2]
[374599855,1753369852206,-460.0,0.00024268,2]
[374599856,1753369852219,-460.0,0.00024268,2]
[374599857,1753369852229,-892.16,0.00024271,2]
[374599858,1753369852239,-520.87,0.00024271,2]
[374599859,1753369852249,-1355.64,0.00024271,2]
[374599860,1753369852259,-728.36,0.00024271,2]
[374599861,1753369852268,-1595.08,0.00024271,2]
[374599862,1753369852278,-470.01,0.00024271,2]
[374599863,1753369852289,-460.0,0.00024271,2]
[374599864,1753369852298,-284.90544308,0.00024273,2]
[374599865,1753369852308,-3228.83966429,0.00024273,2]
[374599866,1753369852318,-151.387848,0.00024273,7]
[374599867,1753369852327,-269.0,0.00024288,2]
[374599868,1753369852337,-274583.05396891,0.000243,4]
[374599869,1753369852473,-24042.90872864,0.000243,4]
[374599870,1753369852483,-163.0,0.000243,4]
[374599871,1753369852493,-700.62,0.000243,2]
[374599872,1753369852504,-2108.37,0.000243,7]
[374599873,1753369852513,-151.0,0.000243,7]
[374599874,1753369852523,-151.0,0.000243,7]
[374599875,1753369852536,-151.0,0.000243,7]
[374599876,1753369852546,-151.0,0.000243,7]
[374599877,1753369852556,-151.0,0.000243,7]
[374599878,1753369852566,-331.746401,0.000243,7]
[374599879,1753369852575,-151.0,0.000243,7]
[374599880,1753369852585,-331.746401,0.000243,7]
[374599881,1753369852594,-151.0,0.000243,7]
[374599882,1753369852603,-229.080533,0.000243,7]
[374599883,1753369852613,-229.080533,0.000243,7]
[374599884,1753369852623,-151.0,0.000243,7]
[374599885,1753369852634,-151.0,0.000243,7]
[374599886,1753369852643,-151.0,0.000243,7]
[374599887,1753369852652,-151.0,0.000243,7]
[374599888,1753369852662,-412.758341,0.000243,7]
[374599889,1753369852671,-412.758341,0.000243,7]
[374599890,1753369852680,-151.0,0.000243,7]
[374599891,1753369852689,-151.0,0.000243,7]
[374599892,1753369852699,-151.0,0.000243,7]
[374599893,1753369852709,-151.0,0.000243,7]
[374599894,1753369852719,-151.0,0.000243,7]
[374599895,1753369852728,-151.0,0.000243,7]
[374599896,1753369852738,-395.835009,0.000243,7]
[374599897,1753369852748,-151.0,0.000243,7]
[374599898,1753369852757,-151.0,0.000243,7]
[374599899,1753369852767,-395.835009,0.000243,7]
[374599900,1753369852777,-186.976971,0.000243,7]
[374599901,1753369852791,-186.976971,0.000243,7]
[374599902,1753369852800,-151.0,0.000243,7]
[374599903,1753369852810,-151.0,0.000243,7]
[374599904,1753369852819,-151.0,0.000243,7]
[374599905,1753369852829,-151.0,0.000243,7]
[374599906,1753369852838,-203.597045,0.000243,7]
[374599907,1753369852848,-203.597045,0.000243,7]
[374599908,1753369852859,-151.0,0.000243,7]
[374599909,1753369852869,-239.905453,0.000243,7]
[374599910,1753369852879,-151.0,0.000243,7]
[374599911,1753369852889,-239.905453,0.000243,7]
[374599912,1753369852930,-183.586108,0.000243,7]
[374599913,1753369852940,-151.0,0.000243,7]
[374599914,1753369852950,-183.586108,0.000243,7]
[374599915,1753369852959,-151.0,0.000243,7]
[374599916,1753369852969,-151.0,0.000243,7]
[374599917,1753369852978,-1959.962733,0.000243,7]
[374599918,1753369852988,-1959.962733,0.000243,7]
[374599919,1753369852997,-151.0,0.000243,7]
[374599920,1753369853007,-151.0,0.000243,7]
[374599921,1753369853016,-155.465693,0.00024328,2]
[374599922,1753369853027,-201.04954806,0.00024378,2]
[374599923,1753369853039,-598.0,0.00024378,2]
[374599924,1753369853048,-151.0,0.00024378,2]
[374599925,1753369853058,-250.0,0.00024452,2]
[374599926,1753369853068,-2207.52044602,0.00024452,11]
[374599927,1753369853078,-500.0,0.00024468,2]
[374599928,1753369853087,-26163.24,0.000245,2]
[374599929,1753369853097,-4457.98,0.000245,7]
[374599930,1753369853106,-1724.36,0.000245,7]
[374599931,1753369853115,-269.0,0.00024514,2]
[374599932,1753369853124,-429.7456075,0.00024521,2]
[374599933,1753369853134,-429.7456075,0.00024521,2]
[374599934,1753369853143,-429.7456075,0.00024521,2]
[374599935,1753369853152,-429.7456075,0.00024521,2]
[374599936,1753369853161,-429.7456075,0.00024521,2]
[374599937,1753369853171,-859.491215,0.00024521,2]
[374599938,1753369853181,-151.0,0.00024532,7]
[374599939,1753369853190,-1817.27,0.0002454,2]